Workbook

Sheet Лист1
A1: Школа | C1: МБОУ "Кувинская СОШ" | F1: Утвердил: | G1: должность | H1: Индивидуальный предприниматель
A2: Типовое примерное меню приготавливаемых блюд | G2: фамилия | H2: Петрова Ирина Алексеевна
A3: Возрастная категория | E3: 7-11 лет | G3: дата | H3: 2 | I3: 3 | J3: 2026
H4: день | I4: месяц | J4: год
A5: Неделя | B5: День недели | C5: Прием пищи | D5: Раздел меню | E5: Блюда | F5: Вес блюда, г | G5: Белки | H5: Жиры | I5: Углеводы | J5: Калорийность | K5: № рецептуры | L5: Цена
A6: 1 | B6: 1 | C6: Завтрак | D6: гор.блюдо
D7: гор.напиток
D8: гастрономия
D9: хлеб бел.
D10: хлеб черн.
D11: итого | G11: =SUM(G6:G10) -> 0 | H11: =SUM(H6:H10) -> 0 | I11: =SUM(I6:I10) -> 0 | J11: =SUM(J6:J10) -> 0 | L11: =SUM(L6:L10) -> 0.00
A12: 1 | B12: 1 | C12: Обед | D12: закуска | E12: Огурцы соленые | F12: 60 | G12: 0.48 | H12: 0.06 | I12: 1.02 | J12: 6.6 | K12: 149 | L12: 13.00
D13: 1 блюдо | E13: Суп из овощей | F13: 200/5 | G13: 1.6 | H13: 3.62 | I13: 5.06 | J13: 59.2 | K13: 116 | L13: 12.00
D14: 2 блюдо | E14: Котлеты из говядины с соусом томатным | F14: 100 | G14: 10.26 | H14: 11.92 | I14: 6.74 | J14: 180.54 | K14: ТУ 030 | L14: 49.51
D15: гарнир | E15: Макаронные изделия отварные | F15: 150 | G15: 5.55 | H15: 4.95 | I15: 29.55 | J15: 184.5 | K15: 256 | L15: 15.00
D16: напиток | E16: Чай с сахаром | F16: 200 | G16: 0.2 | H16: 0.1 | I16: 9.3 | J16: 38 | K16: 457 | L16: 10.00
D17: хлеб бел. | E17: Хлеб пшеничный | F17: 50 | G17: 3.94 | H17: 0.4 | I17: 26.6 | J17: 129.4 | L17: 6.00
D18: хлеб черн. | E18: Хлеб ржано-пшеничный | F18: 50 | G18: 3.74 | H18: 0.54 | I18: 24.24 | J18: 119 | L18: 6.00
D20: итого | F20: 815 | G20: =SUM(G12:G19) -> 25.77 | H20: =SUM(H12:H19) -> 21.59 | I20: =SUM(I12:I19) -> 102.51 | J20: =SUM(J12:J19) -> 717.24 | L20: =SUM(L12:L19) -> 111.51
A21: 1 | B21: 1 | C21: Итого за день: | F21: =F20+F11 -> 815 | G21: =G20+G11 -> 25.77 | H21: =H20+H11 -> 21.59 | I21: =I20+I11 -> 102.51 | J21: =J20+J11 -> 717.24 | L21: =L20+L11 -> 111.51
A22: 1 | B22: 2 | C22: Завтрак | D22: 2 блюдо
D23: гарнир
D24: охл.напиток
D25: конд.изделия
D26: хлеб бел.
D28: итого | G28: =SUM(G22:G27) -> 0 | H28: =SUM(H22:H27) -> 0 | I28: =SUM(I22:I27) -> 0 | J28: =SUM(J22:J27) -> 0 | L28: =SUM(L22:L27) -> 0
A29: 1 | B29: 2 | C29: Обед | D29: закуска | E29: Салат из квашеной капусты с луком | F29: 100 | G29: 1.6 | H29: 6 | I29: 8.2 | J29: 94 | K29: 9 | L29: 13.00
D30: 1 блюдо | E30: Рассольник Ленинградский | F30: 200/5 | G30: 2.1 | H30: 4.08 | I30: 10.6 | J30: 87.6 | K30: 100 | L30: 12.00
D31: 2 блюдо | E31: Котлеты рыбные из минтая с соусом томатным | F31: 100 | G31: 9.53 | H31: 7.23 | I31: 7.35 | J31: 137.74 | K31: ТУ584 | L31: 38.51
D32: гарнир | E32: Пюре картофельное | F32: 150 | G32: 4.05 | H32: 6 | I32: 8.7 | J32: 105 | K32: 377 | L32: 26.00
D33: напиток | E33: Кисель из концентрата витамин | F33: 200 | G33: 0 | H33: 0 | I33: 15 | J33: 60 | K33: 484 | L33: 10.00
D34: хлеб бел. | E34: Хлеб пшеничный | F34: 50 | G34: 3.94 | H34: 0.4 | I34: 26.6 | J34: 129.4 | L34: 6.00
D35: хлеб черн. | E35: Хлеб ржано-пшеничный | F35: 50 | G35: 3.74 | H35: 0.54 | I35: 24.24 | J35: 119 | L35: 6.00
D37: итого | F37: 855 | G37: =SUM(G29:G36) -> 24.96 | H37: =SUM(H29:H36) -> 24.25 | I37: 100.69 | J37: 732.74 | L37: 111.51
A38: 1 | B38: 2 | C38: Итого за день: | F38: =F37+F28 -> 855 | G38: =G37+G28 -> 24.96 | H38: 24.25 | I38: 100.69 | J38: 732.74 | K38: 0 | L38: 111.51
A39: 1 | B39: 3 | C39: Завтрак | D39: гор.блюдо
D40: гор.напиток
D41: гастрономия
D42: хлеб бел.
D43: хлеб черн.
D44: итого | G44: =SUM(G39:G43) -> 0 | H44: =SUM(H39:H43) -> 0 | I44: =SUM(I39:I43) -> 0 | J44: =SUM(J39:J43) -> 0 | L44: =SUM(L39:L43) -> 0.00
A45: 1 | B45: 3 | C45: Обед | D45: закуска | E45: Салат из свеклы отварной | F45: 60 | G45: 0.84 | H45: 3.66 | I45: 4.56 | J45: 54.6 | K45: 26 | L45: 11.00
D46: 1 блюдо | E46: Суп картофельный с бобовыми | F46: 200 | G46: 5.04 | H46: 2.86 | I46: 11.68 | J46: 92.6 | K46: 113 | L46: 12.00
D47: 2 блюдо | E47: Котлеты из мяса птицы с соусом томатным | F47: 100 | G47: 10.58 | H47: 12.6 | I47: 8.4 | J47: 189.25 | K47: ТУ031 | L47: 47.51
D48: гарнир | E48: Рис отварной | F48: 150 | G48: 3.77 | H48: 5.43 | I48: 38.85 | J48: 219.3 | K48: 385 | L48: 18.00
D49: напиток | E49: Компот из свежих яблок | F49: 200 | G49: 0.1 | H49: 0.1 | I49: 11.1 | J49: 46 | K49: 486 | L49: 14.00
D50: хлеб бел. | E50: Хлеб пшеничный | F50: 50 | G50: 3.94 | H50: 0.4 | I50: 26.6 | J50: 129.4 | L50: 6.00
D51: хлеб черн. | E51: Хлеб ржано-пшеничный | F51: 25 | G51: 1.87 | H51: 0.27 | I51: 12.12 | J51: 59.5 | L51: 3.00
D53: итого | F53: 785 | G53: =SUM(G45:G52) -> 26.14 | H53: =SUM(H45:H52) -> 25.32 | I53: 113.31 | J53: 790.65 | L53: 111.51
A54: 1 | B54: 3 | C54: Итого за день: | F54: =F53+F44 -> 785 | G54: =G53+G44 -> 26.14 | H54: 25.32 | I54: 113.31 | J54: 790.65 | K54: 0 | L54: 111.51
A55: 1 | B55: 4 | C55: Завтрак | D55: 2 блюдо
D56: охл.напиток
D57: Фрукты
D58: итого | G58: =SUM(G55:G57) -> 0 | H58: =SUM(H55:H57) -> 0 | I58: =SUM(I55:I57) -> 0 | J58: =SUM(J55:J57) -> 0 | L58: =SUM(L55:L57) -> 0.00
A59: 1 | B59: 4 | C59: Обед | D59: закуска | E59: Салат картофельный с зеленым горошком | F59: 60 | G59: 1.5 | H59: 3.78 | I59: 4.98 | J59: 60 | K59: 42 | L59: 11.00
D60: 1 блюдо | E60: Борщ с капустой и картофелем | F60: 200/5 | G60: 1.48 | H60: 3.54 | I60: 5.56 | J60: 60 | K60: 95 | L60: 12.00
D61: 2 блюдо | E61: Фрикадельки из говядины с соусом томатным | F61: 100 | G61: 10.26 | H61: 10.29 | I61: 6.35 | J61: 159.11 | K61: ТУ030 | L61: 49.51
D62: гарнир | E62: Макаронные изделия отварные | F62: 150 | G62: 5.55 | H62: 4.95 | I62: 29.55 | J62: 184.5 | K62: 256 | L62: 15.00
D63: напиток | E63: Кофейный напиток с молоком | F63: 200 | G63: 1.4 | H63: 1.2 | I63: 11.4 | J63: 63 | K63: 464 | L63: 12.00
D64: хлеб бел. | E64: Хлеб пшеничный | F64: 50 | G64: 3.94 | H64: 0.4 | I64: 26.6 | J64: 129.4 | L64: 6.00
D65: хлеб черн. | E65: Хлеб ржано-пшеничный | F65: 50 | G65: 3.74 | H65: 0.54 | I65: 24.24 | J65: 119 | L65: 6.00
D67: итого | F67: 815 | G67: =SUM(G59:G66) -> 27.87 | H67: =SUM(H59:H66) -> 24.7 | I67: 108.68 | J67: 775.01 | L67: 111.51
A68: 1 | B68: 4 | C68: Итого за день: | F68: =F67+F58 -> 815 | G68: =G67+G58 -> 27.87 | H68: 24.7 | I68: 108.68 | J68: 775.01 | K68: 0 | L68: 111.51
A69: 1 | B69: 5 | C69: Завтрак | D69: гор.блюдо
D70: гор.напиток
D71: гастрономия
D72: хлеб бел.
D73: хлеб черн.
D74: итого | G74: =SUM(G69:G73) -> 0 | H74: =SUM(H69:H73) -> 0 | I74: =SUM(I69:I73) -> 0 | J74: =SUM(J69:J73) -> 0 | L74: =SUM(L69:L73) -> 0
A75: 1 | B75: 5 | C75: Обед | D75: закуска | E75: Винегрет овощной | F75: 60 | G75: 0.96 | H75: 3.72 | I75: 3.96 | J75: 52.8 | K75: 47 | L75: 11.00
D76: 1 блюдо | E76: Суп молочный с макаронными изделиями | F76: 200 | G76: 5.76 | H76: 6.48 | I76: 19.7 | J76: 160.2 | K76: 139 | L76: 15.00
D77: 2 блюдо | E77: Котлеты из мяса птицы с соусом томатным | F77: 100 | G77: 10.58 | H77: 12.6 | I77: 8.4 | J77: 189.25 | K77: ТУ031 | L77: 47.51
D78: гарнир | E78: Каша гречневая вязкая | F78: 150 | G78: 6.69 | H78: 5.76 | I78: 24.15 | J78: 175.05 | K78: 213 | L78: 18.00
D79: напиток | E79: Чай с лимоном | F79: 200/5 | G79: 0.3 | H79: 0.1 | I79: 9.5 | J79: 40 | K79: 459 | L79: 11.00
D80: хлеб бел. | E80: Хлеб пшеничный | F80: 50 | G80: 3.94 | H80: 0.4 | I80: 26.6 | J80: 129.4 | L80: 6.00
D81: хлеб черн. | E81: Хлеб ржано-пшеничный | F81: 25 | G81: 1.87 | H81: 0.27 | I81: 12.12 | J81: 59.5 | L81: 3.00
D83: итого | F83: 790 | G83: =SUM(G75:G82) -> 30.1 | H83: =SUM(H75:H82) -> 29.33 | I83: 104.43 | J83: 806.2 | L83: 111.51
A84: 1 | B84: 5 | C84: Итого за день: | F84: =F83+F74 -> 790 | G84: =G83+G74 -> 30.1 | H84: 29.33 | I84: 104.43 | J84: 806.2 | K84: 0 | L84: 111.51
A85: 2 | B85: 1 | C85: Завтрак | D85: гор. Блюдо
D86: гор.напиток
D87: гастрономия
D88: хлеб бел.
D89: хлеб черн.
D90: итого | G90: =SUM(G85:G89) -> 0 | H90: =SUM(H85:H89) -> 0 | I90: =SUM(I85:I89) -> 0 | J90: =SUM(J85:J89) -> 0 | L90: =SUM(L85:L89) -> 0
A91: 2 | B91: 1 | C91: Обед | D91: закуска | E91: Салат из квашеной капусты с луком | F91: 60 | G91: 0.96 | H91: 3.6 | I91: 4.92 | J91: 56.4 | K91: 9 | L91: 9.00
D92: 1 блюдо | E92: Суп с рыбными консервами | F92: 200 | G92: 7.44 | H92: 9.12 | I92: 8.04 | J92: 144 | K92: 122 | L92: 19.00
D93: 2 блюдо | E93: Котлеты из мяса птицы с соусом томатным | F93: 100 | G93: 10.58 | H93: 12.6 | I93: 8.4 | J93: 189.25 | K93: ТУ031 | L93: 47.51
D94: гарнир | E94: Макаронные изделия отварные | F94: 150 | G94: 5.55 | H94: 4.95 | I94: 29.55 | J94: 184.5 | K94: 256 | L94: 15.00
D95: напиток | E95: Кофейный напиток с молоком | F95: 200 | G95: 1.4 | H95: 1.2 | I95: 11.4 | J95: 63 | K95: 464 | L95: 12.00
D96: хлеб бел. | E96: Хлеб пшеничный | F96: 50 | G96: 3.94 | H96: 0.4 | I96: 26.6 | J96: 129.4 | L96: 6.00
D97: хлеб черн. | E97: Хлеб ржано-пшеничный | F97: 25 | G97: 1.87 | H97: 0.27 | I97: 12.12 | J97: 59.5 | L97: 3.00
D99: итого | F99: 785 | G99: =SUM(G91:G98) -> 31.74 | H99: =SUM(H91:H98) -> 32.14 | I99: 101.03 | J99: 826.05 | L99: 111.51
A100: 2 | B100: 1 | C100: Итого за день: | F100: =F90+F99 -> 785 | G100: =G90+G99 -> 31.74 | H100: 32.14 | I100: 101.03 | J100: 826.05 | K100: 0 | L100: 111.51
A101: 2 | B101: 2 | C101: Завтрак | D101: закуска
D102: 2 блюдо
D103: охл напиток
D104: хлеб бел.
D105: хлеб черн.
D106: итого | G106: =SUM(G101:G105) -> 0 | H106: =SUM(H101:H105) -> 0 | I106: =SUM(I101:I105) -> 0 | J106: =SUM(J101:J105) -> 0 | L106: =SUM(L101:L105) -> 0
A107: 2 | B107: 2 | C107: Обед | D107: закуска | E107: Винегрет овощной | F107: 100 | G107: 1.6 | H107: 6.2 | I107: 6.6 | J107: 88 | K107: 47 | L107: 12.00
D108: 1 блюдо | E108: Щи из свежей капусты с картофелем | F108: 200/5 | G108: 1.2 | H108: 3.6 | I108: 3.04 | J108: 49.4 | K108: 104 | L108: 12.00
D109: 2 блюдо | E109: Котлеты из говядины с соусом томатным | F109: 100 | G109: 10.26 | H109: 11.92 | I109: 6.74 | J109: 180.54 | K109: ТУ030 | L109: 49.51
D110: гарнир | E110: Каша гречневая вязкая | F110: 150 | G110: 6.69 | H110: 5.76 | I110: 24.15 | J110: 175.05 | K110: 213 | L110: 18.00
D111: напиток | E111: Чай с лимоном | F111: 200/5 | G111: 0.3 | H111: 0.1 | I111: 9.5 | J111: 40 | K111: 459 | L111: 11.00
D112: хлеб бел. | E112: Хлеб пшеничный | F112: 50 | G112: 3.94 | H112: 0.4 | I112: 26.6 | J112: 129.4 | L112: 6.00
D113: хлеб черн. | E113: Хлеб ржано-пшеничный | F113: 50 | G113: 3.74 | H113: 0.54 | I113: 24.24 | J113: 119 | L113: 6.00
D115: итого | F115: 860 | G115: =SUM(G107:G114) -> 27.73 | H115: =SUM(H107:H114) -> 28.52 | I115: 100.87 | J115: 781.39 | L115: 114.51
A116: 2 | B116: 2 | C116: Итого за день: | F116: =F106+F115 -> 860 | G116: =G106+G115 -> 27.73 | H116: 28.52 | I116: 100.87 | J116: 781.39 | L116: 114.51
A117: 2 | B117: 3 | C117: Завтрак | D117: гор. Блюдо
D118: гор.напиток
D119: гастрономия
D120: хлеб бел.
D121: хлеб черн.
D122: итого | G122: =SUM(G117:G121) -> 0 | H122: =SUM(H117:H121) -> 0 | I122: =SUM(I117:I121) -> 0 | J122: =SUM(J117:J121) -> 0 | L122: =SUM(L117:L121) -> 0
A123: 2 | B123: 3 | C123: Обед | D123: закуска | E123: Огурцы соленые | F123: 60 | G123: 0.48 | H123: 0.06 | I123: 1.02 | J123: 6.6 | K123: 149 | L123: 13.00
D124: 1 блюдо | E124: Суп-пюре из разных овощей с гренками | F124: 200/15 | G124: 2.32 | H124: 3.76 | I124: 5.8 | J124: 66.4 | K124: 134 | L124: 19.00
D125: 2 блюдо | E125: Тефтели рыбные из минтая с соусом томатным | F125: 100 | G125: 8.95 | H125: 5.48 | I125: 9.16 | J125: 121.07 | K125: ТУ584 | L125: 39.51
D126: гарнир | E126: Рис отварной | F126: 150 | G126: 3.77 | H126: 5.43 | I126: 38.85 | J126: 219.3 | K126: 385 | L126: 18.00
D127: напиток | E127: Кисель из концентрата витамин | F127: 200 | G127: 0 | H127: 0 | I127: 15 | J127: 60 | K127: 484 | L127: 10.00
D128: хлеб бел. | E128: Хлеб пшеничный | F128: 50 | G128: 3.94 | H128: 0.4 | I128: 26.6 | J128: 129.4 | L128: 6.00
D129: хлеб черн. | E129: Хлеб ржано-пшеничный | F129: 50 | G129: 3.74 | H129: 0.54 | I129: 24.24 | J129: 119 | L129: 6.00
D130: итого | F130: 825 | G130: =SUM(G123:G129) -> 23.2 | H130: =SUM(H123:H129) -> 15.67 | I130: 120.67 | J130: 721.77 | L130: 111.51
A131: 2 | B131: 3 | C131: Итого за день: | F131: =F122+F130 -> 825 | G131: =G122+G130 -> 23.2 | H131: 15.67 | I131: 120.67 | J131: 721.77 | K131: 0 | L131: 111.51
A132: 2 | B132: 4 | C132: Завтрак | D132: гор.блюдо
D133: гор.напиток
D134: гастрономия
D135: хлеб бел.
D136: хлеб черн.
D137: итого | G137: =SUM(G132:G136) -> 0 | H137: =SUM(H132:H136) -> 0 | I137: =SUM(I132:I136) -> 0 | J137: =SUM(J132:J136) -> 0 | L137: =SUM(L132:L136) -> 0
A138: 2 | B138: 4 | C138: Обед | D138: закуска | E138: Икра морковная | F138: 60 | G138: 0.84 | H138: 2.28 | I138: 3.9 | J138: 39.6 | K138: 54 | L138: 5.00
D139: 1 блюдо | E139: Суп картофельный с бобовыми | F139: 200 | G139: 5.04 | H139: 2.86 | I139: 11.68 | J139: 92.6 | K139: 113 | L139: 12.00
D140: 2 блюдо | E140: Котлеты из говядины с соусом томатным | F140: 100 | G140: 10.26 | H140: 11.92 | I140: 6.74 | J140: 180.54 | K140: ТУ030 | L140: 49.51
D141: гарнир | E141: Пюре картофельное | F141: 150 | G141: 4.05 | H141: 6 | I141: 8.7 | J141: 105 | K141: 377 | L141: 26.00
D142: напиток | E142: Компот из смеси сухофруктов витамин | F142: 200 | G142: 0.6 | H142: 0.1 | I142: 20.1 | J142: 84 | K142: 495 | L142: 10.00
D143: хлеб бел. | E143: Хлеб пшеничный | F143: 50 | G143: 3.94 | H143: 0.4 | I143: 26.6 | J143: 129.4 | L143: 6.00
D144: хлеб черн. | E144: Хлеб ржано-пшеничный | F144: 50 | G144: 3.74 | H144: 0.54 | I144: 24.24 | J144: 119 | L144: 6.00
D146: итого | F146: 810 | G146: =SUM(G138:G145) -> 28.47 | H146: =SUM(H138:H145) -> 24.1 | I146: =SUM(I138:I145) -> 101.96 | J146: =SUM(J138:J145) -> 750.14 | L146: =SUM(L138:L145) -> 114.51
A147: 2 | B147: 4 | C147: Итого за день: | F147: =F137+F146 -> 810 | G147: =G146+G137 -> 28.47 | H147: 24.1 | I147: 101.96 | J147: 750.14 | K147: 0 | L147: 114.51
A148: 2 | B148: 5 | C148: Завтрак | D148: 2 блюдо
D149: гарнир
D150: охл.напиток
D151: булочные изд
D152: хлеб бел.
D154: итого | G154: =SUM(G148:G153) -> 0 | H154: =SUM(H148:H153) -> 0 | I154: 0 | J154: 0 | L154: =SUM(L148:L153) -> 0
A155: 2 | B155: 5 | C155: Обед | D155: закуска | E155: Салат картофельный с квашеной капустой | F155: 60 | G155: 1.26 | H155: 3.78 | I155: 4.92 | J155: 58.8 | K155: 43 | L155: 11.00
D156: 1 блюдо | E156: Борщ с капустой и картофелем | F156: 200/5 | G156: 1.48 | H156: 3.54 | I156: 5.56 | J156: 60 | K156: 95 | L156: 12.00
D157: 2 блюдо | E157: Птица в соусе с томатом | F157: 100 | G157: 9.5 | H157: 11.07 | I157: 2.21 | J157: 146.43 | K157: 367 | L157: 51.51
D158: гарнир | E158: Макаронные изделия отварные | F158: 150 | G158: 5.55 | H158: 4.95 | I158: 29.55 | J158: 184.5 | K158: 256 | L158: 15.00
D159: напиток | E159: Чай с сахаром | F159: 200 | G159: 0.2 | H159: 0.1 | I159: 9.3 | J159: 38 | K159: 457 | L159: 10.00
D160: хлеб бел. | E160: Хлеб пшеничный | F160: 50 | G160: 3.94 | H160: 0.4 | I160: 26.6 | J160: 129.4 | L160: 6.00
D161: хлеб черн. | E161: Хлеб ржано-пшеничный | F161: 50 | G161: 3.74 | H161: 0.54 | I161: 24.24 | J161: 119 | L161: 6.00
D163: итого | F163: 815 | G163: =SUM(G155:G162) -> 25.67 | H163: =SUM(H155:H162) -> 24.38 | I163: =SUM(I155:I162) -> 102.38 | J163: =SUM(J155:J162) -> 736.13 | L163: =SUM(L155:L162) -> 111.51
A164: 2 | B164: 5 | C164: Итого за день: | F164: =F154+F163 -> 815 | G164: =G163+G154 -> 25.67 | H164: 24.38 | I164: 102.38 | J164: 736.13 | K164: 0 | L164: 111.51
C165: Итого за 10 дней | F165: =F21+F38+F54+F68+F84+F100+F116+F131+F147+F164 -> 8155 | G165: 271.65 | H165: 250 | I165: 1056.53 | J165: 7637.32 | K165: 0 | L165: 1121.1
C166: Среднее значение за период: | F166: =F165/10 -> 815.50 | G166: =G165/10 -> 27.17 | H166: =H165/10 -> 25.00 | I166: 105.65 | J166: 763.73 | K166: 0.00 | L166: 112.11

Sheet Лист2

Sheet Лист3
